[Event "FIDE World Rapid-ch Open 2018"]
[White "Yakubboev, Nodirbek"]
[Black "Sarana, Alexey"]
[Site "St. Petersburg"]
[Round "1.77"]
[Annotator "ChessBase"]
[Result "1/2-1/2"]
[Date "2018.12.26"]
[WhiteElo "2556"]
[BlackElo "2618"]
[PlyCount "82"]
[TimeControl "900+10"]

1. d4 {[%emt 0:0:0]} Nf6 {[%emt 0:0:0]} 2. Bg5 {[%emt 0:0:10]} g6 {[%emt 0:0:17]
} 3. Nc3 {[%emt 0:1:58]} Bg7 {[%emt 0:0:9]} 4. e4 {[%emt 0:0:0]} d6 {[%emt 0:1:23]} 5. Qd2 {[%emt 0:1:43]} h6 {[%emt 0:0:42]} 6. Bf4 {[%emt 0:0:15]
} g5 {[%emt 0:3:58]} 7. Be3 {[%emt 0:0:13]} Ng4 {[%emt 0:0:7]
} 8. Bc4 {[%emt 0:0:34]} Nxe3 {[%emt 0:0:7]} 9. fxe3 {[%emt 0:0:1]} c6 {[%emt 0:0:20]
} 10. Nge2 {[%emt 0:0:36]} b5 {[%emt 0:0:39]} 11. Bb3 {[%emt 0:0:0]} a5 {[%emt 0:0:19]} 12. 0-0 {[%emt 0:0:16]} e6 {[%emt 0:0:8]} 13. a3 {[%emt 0:1:2]} Ba6 {[%emt 0:2:47]} 14. d5 {[%emt 0:5:31]} exd5 {[%emt 0:0:0]} 15. exd5 {[%emt 0:1:6]} c5 {[%emt 0:0:1]} 16. Ng3 {[%emt 0:1:38]} a4 {[%emt 0:1:36]} 17. Nf5 {[%emt 0:1:46]} Be5 {[%emt 0:0:2]} 18. Ba2 {[%emt 0:0:30]
} b4 {[%emt 0:0:3]} 19. axb4 {[%emt 0:0:16]} Bxf1 {[%emt 0:0:0]} 20. Rxf1 {[%emt 0:0:4]} cxb4 {[%emt 0:0:2]} 21. Nb5 {[%emt 0:0:9]} Na6 {[%emt 0:1:27]} 22. Bc4 {[%emt 0:0:16]} Qb6 {[%emt 0:0:20]} 23. Qf2 {[%emt 0:0:9]
} Rf8 {[%emt 0:0:25]} 24. Nxh6 {[%emt 0:0:13]} 0-0-0 {[%emt 0:0:0]} 25. Nxf7 {[%emt 0:0:4]} Kb8 {[%emt 0:0:19]} 26. Qe2 {[%emt 0:0:14]} Rc8 {[%emt 0:0:40]} 27. c3 {[%emt 0:0:7]} Bf4 {[%emt 0:0:15]} 28. Nd4 {[%emt 0:0:8]
} Bxe3+ {[%emt 0:0:56]} 29. Qxe3 {[%emt 0:0:2]} Rxc4 {[%emt 0:0:0]} 30. Qe7 {[%emt 0:0:15]} Rcc8 {[%emt 0:0:1]} 31. Nxd6 {[%emt 0:0:5]
} Rxf1+ {[%emt 0:1:3]} 32. Kxf1 {[%emt 0:0:0]} bxc3 {[%emt 0:0:7]} 33. bxc3 {[%emt 0:0:3]} Qb1+ {[%emt 0:0:1]} 34. Ke2 {[%emt 0:0:16]} Qb2+ {[%emt 0:0:15]
} 35. Kf1 {[%emt 0:0:13]} Qa1+ {[%emt 0:0:23]} 36. Kf2 {[%emt 0:0:7]
} Qa2+ {[%emt 0:0:3]} 37. Ke1 {[%emt 0:0:31]} Qa1+ {[%emt 0:0:0]} 38. Kf2 {[%emt 0:0:4]} Qb2+ {[%emt 0:0:2]} 39. Kf1 {[%emt 0:0:17]} Qc1+ {[%emt 0:0:16]} 40. Ke2 {[%emt 0:0:8]} Qb2+ {[%emt 0:0:2]} 41. Kf1 {[%emt 0:0:14]
} Qb1+ {[%emt 0:0:23]} 1/2-1/2

[Event "FIDE World Rapid-ch Open 2018"]
[White "Piorun, Kacper"]
[Black "Hirneise, Jens"]
[Site "St. Petersburg"]
[Round "1.78"]
[Annotator "ChessBase"]
[Result "1-0"]
[Date "2018.12.26"]
[WhiteElo "2634"]
[BlackElo "2371"]
[PlyCount "93"]
[TimeControl "900+10"]

1. c4 {[%emt 0:0:0]} g6 {[%emt 0:0:0]} 2. g3 {[%emt 0:0:0]} Bg7 {[%emt 0:0:0]} 3. Bg2 {[%emt 0:0:0]} Nf6 {[%emt 0:0:0]} 4. Nc3 {[%emt 0:0:9]} 0-0 {[%emt 0:0:1]} 5. e4 {[%emt 0:0:9]} d6 {[%emt 0:0:2]} 6. Nge2 {[%emt 0:0:1]
} c5 {[%emt 0:0:22]} 7. 0-0 {[%emt 0:0:5]} Nc6 {[%emt 0:0:6]
} 8. d3 {[%emt 0:0:1]} Ne8 {[%emt 0:0:6]} 9. Be3 {[%emt 0:0:1]} Nd4 {[%emt 0:0:7]
} 10. Rb1 {[%emt 0:0:27]} Nc7 {[%emt 0:0:41]} 11. b4 {[%emt 0:0:0]} b6 {[%emt 0:0:43]} 12. Qd2 {[%emt 0:1:9]} Bb7 {[%emt 0:0:16]} 13. Bh6 {[%emt 0:0:18]} Nxe2+ {[%emt 0:0:53]} 14. Nxe2 {[%emt 0:0:2]} Bxh6 {[%emt 0:0:27]
} 15. Qxh6 {[%emt 0:0:3]} e5 {[%emt 0:0:3]} 16. f4 {[%emt 0:0:0]} Qf6 {[%emt 0:1:4]} 17. f5 {[%emt 0:0:24]} Qg7 {[%emt 0:0:17]} 18. Qe3 {[%emt 0:0:1]} f6 {[%emt 0:0:8]} 19. h4 {[%emt 0:1:26]} Na6 {[%emt 0:0:0]} 20. a3 {[%emt 0:0:6]} Nb8 {[%emt 0:0:19]} 21. Kh2 {[%emt 0:0:29]} Nc6 {[%emt 0:0:11]} 22. g4 {[%emt 0:1:32]} Nd4 {[%emt 0:0:42]} 23. Ng3 {[%emt 0:1:9]
} cxb4 {[%emt 0:3:20]} 24. axb4 {[%emt 0:0:9]} a5 {[%emt 0:0:0]} 25. bxa5 {[%emt 0:0:18]} bxa5 {[%emt 0:0:3]} 26. g5 {[%emt 0:0:12]} Bc8 {[%emt 0:0:43]} 27. Bh3 {[%emt 0:1:8]} a4 {[%emt 0:0:50]} 28. Rb2 {[%emt 0:1:50]
} Rf7 {[%emt 0:3:19]} 29. gxf6 {[%emt 0:1:3]} Rxf6 {[%emt 0:0:0]} 30. Nh5 {[%emt 0:0:29]} a3 {[%emt 0:0:49]} 31. Nxg7 {[%emt 0:1:38]} axb2 {[%emt 0:0:1]} 32. Ne8 {[%emt 0:0:2]} Rf8 {[%emt 0:0:15]} 33. Rb1 {[%emt 0:0:36]
} Rxe8 {[%emt 0:0:35]} 34. fxg6 {[%emt 0:0:52]} Bxh3 {[%emt 0:0:0]} 35. Qh6 {[%emt 0:0:22]} Ra7 {[%emt 0:0:47]} 36. gxh7+ {[%emt 0:0:26]
} Kh8 {[%emt 0:0:5]} 37. Kxh3 {[%emt 0:0:33]} Rg7 {[%emt 0:0:24]} 38. Rxb2 {[%emt 0:0:33]} Ne6 {[%emt 0:1:8]} 39. Rf2 {[%emt 0:0:39]} Nf4+ {[%emt 0:0:0]} 40. Rxf4 {[%emt 0:0:4]} exf4 {[%emt 0:0:1]} 41. Qxf4 {[%emt 0:0:0]} Rb8 {[%emt 0:1:2]} 42. Qxd6 {[%emt 0:0:10]} Rb1 {[%emt 0:0:6]} 43. Qf8+ {[%emt 0:0:2]} Kxh7 {[%emt 0:0:2]} 44. Qf3 {[%emt 0:0:3]} Rgg1 {[%emt 0:0:17]
} 45. Kh2 {[%emt 0:0:25]} Rbf1 {[%emt 0:0:6]} 46. Qe3 {[%emt 0:0:7]
} Re1 {[%emt 0:0:27]} 47. Qxg1 {[%emt 0:0:3]} 1-0

[Event "FIDE World Rapid-ch Open 2018"]
[White "Pogosyan, Stefan"]
[Black "Frolyanov, Dmitry"]
[Site "St. Petersburg"]
[Round "1.79"]
[Annotator "ChessBase"]
[Result "0-1"]
[Date "2018.12.26"]
[WhiteElo "2365"]
[BlackElo "2517"]
[PlyCount "44"]
[TimeControl "900+10"]

1. d4 {[%emt 0:2:11]} d5 {[%emt 0:0:0]} 2. c4 {[%emt 0:0:5]} e6 {[%emt 0:0:0]} 3. Nf3 {[%emt 0:0:4]} Nf6 {[%emt 0:0:21]} 4. Bg5 {[%emt 0:0:12]} dxc4 {[%emt 0:0:13]} 5. Qa4+ {[%emt 0:1:23]} c6 {[%emt 0:0:17]} 6. Qxc4 {[%emt 0:0:2]
} b5 {[%emt 0:0:31]} 7. Qc2 {[%emt 0:0:13]} Bb7 {[%emt 0:0:36]
} 8. e4 {[%emt 0:1:11]} h6 {[%emt 0:0:58]} 9. Be3 {[%emt 0:1:23]} Nbd7 {[%emt 0:0:23]
} 10. Nc3 {[%emt 0:3:1]} b4 {[%emt 0:0:29]} 11. Na4 {[%emt 0:0:0]} c5 {[%emt 0:0:3]} 12. Nxc5 {[%emt 0:0:27]} Bxc5 {[%emt 0:0:6]} 13. dxc5 {[%emt 0:0:4]} Bxe4 {[%emt 0:0:17]} 14. Qa4 {[%emt 0:0:28]} 0-0 {[%emt 0:1:7]
} 15. Be2 {[%emt 0:2:8]} Nd5 {[%emt 0:0:25]} 16. Rc1 {[%emt 0:0:0]} Bxf3 {[%emt 0:2:51]} 17. Bxf3 {[%emt 0:0:41]} Ne5 {[%emt 0:0:1]} 18. Be2 {[%emt 0:1:54]} Nxe3 {[%emt 0:0:16]} 19. fxe3 {[%emt 0:0:0]} Qh4+ {[%emt 0:0:26]
} 20. g3 {[%emt 0:0:37]} Qe4 {[%emt 0:0:2]} 21. Kf2 {[%emt 0:0:0]} f5 {[%emt 0:0:18]} 22. h3 {[%emt 0:0:44]} Ng4+ {[%emt 0:0:16]} 0-1

[Event "FIDE World Rapid-ch Open 2018"]
[White "Rakhmanov, Aleksandr"]
[Black "Pershin, Denis"]
[Site "St. Petersburg"]
[Round "1.80"]
[Annotator "ChessBase"]
[Result "1-0"]
[Date "2018.12.26"]
[WhiteElo "2629"]
[BlackElo "2400"]
[PlyCount "77"]
[TimeControl "900+10"]

1. c4 {[%emt 0:0:0]} c6 {[%emt 0:0:0]} 2. d4 {[%emt 0:0:0]} d5 {[%emt 0:0:0]} 3. Nf3 {[%emt 0:0:4]} Nf6 {[%emt 0:0:0]} 4. cxd5 {[%emt 0:0:2]} cxd5 {[%emt 0:0:0]} 5. Nc3 {[%emt 0:0:2]} Nc6 {[%emt 0:0:1]} 6. Bf4 {[%emt 0:0:10]
} a6 {[%emt 0:0:22]} 7. Ne5 {[%emt 0:0:16]} Qb6 {[%emt 0:0:40]
} 8. Nxc6 {[%emt 0:0:40]} bxc6 {[%emt 0:0:55]} 9. f3 {[%emt 0:0:44]} e6 {[%emt 0:0:54]
} 10. Na4 {[%emt 0:0:10]} Qb4+ {[%emt 0:2:25]} 11. Kf2 {[%emt 0:0:7]
} Bd6 {[%emt 0:0:1]} 12. Qd2 {[%emt 0:4:17]} Qb8 {[%emt 0:0:0]} 13. Bxd6 {[%emt 0:0:15]} Qxd6 {[%emt 0:0:2]} 14. Rc1 {[%emt 0:0:10]} 0-0 {[%emt 0:0:24]} 15. e3 {[%emt 0:0:19]} e5 {[%emt 0:0:17]} 16. dxe5 {[%emt 0:0:58]
} Qxe5 {[%emt 0:0:1]} 17. Qd4 {[%emt 0:0:24]} Qd6 {[%emt 0:0:0]} 18. Bd3 {[%emt 0:1:34]} Be6 {[%emt 0:1:22]} 19. Qf4 {[%emt 0:1:10]} Qe7 {[%emt 0:0:47]} 20. b3 {[%emt 0:0:48]} Bd7 {[%emt 0:1:20]} 21. Rc2 {[%emt 0:0:0]} Rfe8 {[%emt 0:0:8]} 22. Rhc1 {[%emt 0:0:16]} Rab8 {[%emt 0:0:4]} 23. Qd4 {[%emt 0:0:51]} a5 {[%emt 0:1:1]} 24. g3 {[%emt 0:2:55]} Rb4 {[%emt 0:0:23]
} 25. Qc5 {[%emt 0:0:2]} Qe5 {[%emt 0:0:1]} 26. Bf1 {[%emt 0:0:0]} Bf5 {[%emt 0:0:45]} 27. Rd2 {[%emt 0:0:34]} Be4 {[%emt 0:0:42]} 28. Bg2 {[%emt 0:0:2]} Qf5 {[%emt 0:1:0]} 29. Kg1 {[%emt 0:0:15]} Bd3 {[%emt 0:2:0]
} 30. e4 {[%emt 0:0:2]} Bxe4 {[%emt 0:1:4]} 31. fxe4 {[%emt 0:0:1]
} Nxe4 {[%emt 0:0:0]} 32. Qxc6 {[%emt 0:0:50]} Rbb8 {[%emt 0:0:0]} 33. Qxd5 {[%emt 0:0:18]} Qf6 {[%emt 0:0:1]} 34. Bxe4 {[%emt 0:0:30]
} Red8 {[%emt 0:0:22]} 35. Qxa5 {[%emt 0:0:15]} Rxd2 {[%emt 0:0:10]} 36. Qxd2 {[%emt 0:0:2]} Rd8 {[%emt 0:0:1]} 37. Qf2 {[%emt 0:0:6]} Qe5 {[%emt 0:0:3]
} 38. Re1 {[%emt 0:0:4]} Qg5 {[%emt 0:0:12]} 39. Qf5 {[%emt 0:0:0]} 1-0

[Event "FIDE World Rapid-ch Open 2018"]
[White "Paravyan, David"]
[Black "Ovchinnikov, Vsevolod"]
[Site "St. Petersburg"]
[Round "1.82"]
[Annotator "ChessBase"]
[Result "0-1"]
[Date "2018.12.26"]
[WhiteElo "2634"]
[BlackElo "2329"]
[PlyCount "230"]
[TimeControl "900+10"]

1. d4 {[%emt 0:0:0]} Nf6 {[%emt 0:0:0]} 2. c4 {[%emt 0:0:0]} g6 {[%emt 0:0:0]} 3. Nf3 {[%emt 0:0:0]} Bg7 {[%emt 0:0:0]} 4. e3 {[%emt 0:0:0]} 0-0 {[%emt 0:0:0]} 5. Be2 {[%emt 0:0:0]} d5 {[%emt 0:0:0]} 6. cxd5 {[%emt 0:0:0]} Nxd5 {[%emt 0:0:0]} 7. 0-0 {[%emt 0:0:0]} c5 {[%emt 0:2:4]} 8. e4 {[%emt 0:0:27]} Nf6 {[%emt 0:1:48]} 9. e5 {[%emt 0:0:1]} Nd5 {[%emt 0:0:0]} 10. dxc5 {[%emt 0:0:6]} Nc6 {[%emt 0:0:4]} 11. Re1 {[%emt 0:0:37]} Be6 {[%emt 0:1:27]} 12. Na3 {[%emt 0:2:54]} Nxe5 {[%emt 0:1:31]} 13. Nxe5 {[%emt 0:2:6]
} Bxe5 {[%emt 0:0:2]} 14. Bf3 {[%emt 0:0:1]} Bg7 {[%emt 0:0:0]} 15. Nb5 {[%emt 0:1:10]} Qa5 {[%emt 0:3:57]} 16. a4 {[%emt 0:0:1]} Rad8 {[%emt 0:0:5]} 17. Bd2 {[%emt 0:0:6]} Qa6 {[%emt 0:0:2]} 18. Qc1 {[%emt 0:0:33]
} Rd7 {[%emt 0:0:36]} 19. Bh6 {[%emt 0:0:2]} Bxh6 {[%emt 0:0:0]} 20. Qxh6 {[%emt 0:0:1]} Rc8 {[%emt 0:0:2]} 21. Bxd5 {[%emt 0:2:25]} Bxd5 {[%emt 0:0:25]} 22. b4 {[%emt 0:0:8]} Qf6 {[%emt 0:0:32]} 23. Nxa7 {[%emt 0:1:11]
} Ra8 {[%emt 0:0:1]} 24. Nb5 {[%emt 0:0:2]} Bc6 {[%emt 0:0:0]} 25. Qc1 {[%emt 0:6:16]} Qh4 {[%emt 0:0:54]} 26. Qc3 {[%emt 0:0:19]} Qg4 {[%emt 0:0:2]} 27. f3 {[%emt 0:0:4]} Qf4 {[%emt 0:0:16]} 28. Red1 {[%emt 0:0:43]
} Rxa4 {[%emt 0:0:35]} 29. Rxd7 {[%emt 0:0:20]} Rxa1+ {[%emt 0:0:0]} 30. Qxa1 {[%emt 0:0:1]} Bxd7 {[%emt 0:0:1]} 31. Nd4 {[%emt 0:0:14]
} e5 {[%emt 0:0:32]} 32. Ne2 {[%emt 0:0:20]} Qe3+ {[%emt 0:0:6]} 33. Kf1 {[%emt 0:0:1]
} Bb5 {[%emt 0:0:3]} 34. Qb2 {[%emt 0:0:1]} h5 {[%emt 0:0:0]} 35. Ke1 {[%emt 0:0:19]} Kh7 {[%emt 0:0:22]} 36. h3 {[%emt 0:0:8]} Kg8 {[%emt 0:0:8]} 37. Qd2 {[%emt 0:0:9]} Qa3 {[%emt 0:0:5]} 38. Kf2 {[%emt 0:0:9]
} Qb3 {[%emt 0:0:13]} 39. Ng3 {[%emt 0:0:5]} Bc6 {[%emt 0:0:0]} 40. Nf1 {[%emt 0:0:16]} Qc4 {[%emt 0:0:9]} 41. Ne3 {[%emt 0:0:6]} Qh4+ {[%emt 0:0:3]} 42. Kg1 {[%emt 0:0:8]} Qf4 {[%emt 0:0:2]} 43. Kf2 {[%emt 0:0:15]
} Qh4+ {[%emt 0:0:2]} 44. Ke2 {[%emt 0:0:8]} e4 {[%emt 0:0:0]} 45. fxe4 {[%emt 0:0:1]} Qxe4 {[%emt 0:0:2]} 46. Qd3 {[%emt 0:0:4]} Qxb4 {[%emt 0:0:7]} 47. Qd8+ {[%emt 0:0:6]} Kg7 48. Qe7 {[%emt 0:0:35]} Qb2+ {[%emt 0:0:10]} 49. Ke1 {[%emt 0:0:20]} Qf6 {[%emt 0:0:9]} 50. Qc7 {[%emt 0:0:9]
} Qc3+ {[%emt 0:0:2]} 51. Ke2 {[%emt 0:0:11]} Qxc5 {[%emt 0:0:0]} 52. Qf4 {[%emt 0:0:5]} Qb5+ {[%emt 0:0:25]} 53. Kf2 {[%emt 0:0:9]} Qb2+ {[%emt 0:0:2]} 54. Kg1 {[%emt 0:0:0]} Qf6 {[%emt 0:0:10]} 55. Qc4 {[%emt 0:0:21]
} Qe5 {[%emt 0:0:5]} 56. Kf2 {[%emt 0:0:5]} Qf6+ {[%emt 0:0:0]} 57. Kg1 {[%emt 0:0:1]} Qa1+ {[%emt 0:0:3]} 58. Kf2 {[%emt 0:0:5]} Qb2+ {[%emt 0:0:3]} 59. Kg1 {[%emt 0:0:6]} Qe5 {[%emt 0:0:10]} 60. Kf2 {[%emt 0:0:3]
} Be4 {[%emt 0:0:3]} 61. g3 {[%emt 0:0:28]} b5 {[%emt 0:0:10]
} 62. Qb4 {[%emt 0:0:1]} h4 {[%emt 0:0:44]} 63. Ng4 {[%emt 0:0:31]} Qxg3+ {[%emt 0:0:11]
} 64. Ke2 {[%emt 0:0:1]} Bf3+ {[%emt 0:0:11]} 65. Kd2 {[%emt 0:0:2]
} Bxg4 {[%emt 0:0:9]} 66. Qd4+ {[%emt 0:0:1]} Kg8 {[%emt 0:0:0]} 67. hxg4 {[%emt 0:0:4]} Qg2+ {[%emt 0:0:13]} 68. Ke1 {[%emt 0:0:22]
} h3 {[%emt 0:0:16]} 69. Qd8+ {[%emt 0:0:2]} Kg7 {[%emt 0:0:14]} 70. Qd4+ {[%emt 0:0:1]
} Kh7 {[%emt 0:0:3]} 71. Qf6 {[%emt 0:0:1]} Qg3+ {[%emt 0:0:0]} 72. Kd2 {[%emt 0:0:4]} Qxg4 {[%emt 0:0:10]} 73. Qxf7+ {[%emt 0:0:1]} Kh6 {[%emt 0:0:1]} 74. Qf8+ {[%emt 0:0:3]} Kg5 {[%emt 0:0:13]} 75. Qe7+ {[%emt 0:0:19]
} Kf4 {[%emt 0:0:11]} 76. Qe3+ {[%emt 0:0:4]} Kf5 {[%emt 0:0:0]} 77. Qc5+ {[%emt 0:0:2]} Kf6 {[%emt 0:0:22]} 78. Qf8+ {[%emt 0:0:15]} Ke5 {[%emt 0:0:8]} 79. Qc5+ {[%emt 0:0:17]} Ke4 {[%emt 0:0:10]} 80. Qe3+ {[%emt 0:0:31]
} Kd5 {[%emt 0:0:3]} 81. Qb3+ {[%emt 0:0:1]} Kc6 {[%emt 0:0:0]} 82. Qc3+ {[%emt 0:0:7]} Kd6 {[%emt 0:0:10]} 83. Qd3+ {[%emt 0:0:9]} Kc5 {[%emt 0:0:3]} 84. Qc3+ {[%emt 0:0:6]} Kb6 {[%emt 0:0:19]} 85. Qe3+ {[%emt 0:0:33]
} Ka6 {[%emt 0:0:8]} 86. Qa3+ {[%emt 0:0:3]} Kb7 {[%emt 0:0:0]} 87. Qe7+ {[%emt 0:0:1]} Kc6 {[%emt 0:0:2]} 88. Qf6+ {[%emt 0:0:7]} Kd5 {[%emt 0:0:19]} 89. Qd8+ {[%emt 0:0:9]} Kc4 {[%emt 0:0:21]} 90. Qc7+ {[%emt 0:0:22]
} Kd5 {[%emt 0:0:8]} 91. Qd8+ {[%emt 0:0:4]} Ke5 {[%emt 0:0:0]} 92. Qc7+ {[%emt 0:0:37]} Kf6 {[%emt 0:0:4]} 93. Qd8+ {[%emt 0:0:8]} Kf7 {[%emt 0:0:17]} 94. Qc7+ {[%emt 0:0:1]} Kg8 {[%emt 0:0:7]} 95. Qd8+ {[%emt 0:0:1]
} Kh7 {[%emt 0:0:3]} 96. Qe7+ {[%emt 0:0:4]} Kh6 {[%emt 0:0:0]} 97. Qf8+ {[%emt 0:0:1]} Kh5 {[%emt 0:0:10]} 98. Qh8+ {[%emt 0:0:2]} Kg5 {[%emt 0:0:1]} 99. Qd8+ {[%emt 0:0:1]} Kf4 {[%emt 0:0:16]} 100. Qd4+ {[%emt 0:1:6]
} Kf3 {[%emt 0:0:7]} 101. Qd5+ {[%emt 0:0:8]} Kg3 {[%emt 0:0:0]} 102. Qd3+ {[%emt 0:0:10]} Kf2 {[%emt 0:0:14]} 103. Qe3+ {[%emt 0:0:0]} Kg2 {[%emt 0:0:2]} 104. Qe5 {[%emt 0:0:7]} h2 {[%emt 0:0:17]} 105. Qd5+ {[%emt 0:0:1]} Kg1 {[%emt 0:0:12]} 106. Qc5+ {[%emt 0:0:1]} Kg2 {[%emt 0:0:9]
} 107. Qc6+ {[%emt 0:0:8]} Kh3 {[%emt 0:0:10]} 108. Qc3+ {[%emt 0:0:1]
} Qg3 {[%emt 0:0:9]} 109. Qc8+ {[%emt 0:0:1]} Kg2 {[%emt 0:0:0]} 110. Qc6+ {[%emt 0:0:1]} Qf3 {[%emt 0:0:14]} 111. Qxg6+ {[%emt 0:0:0]} Kf1 {[%emt 0:0:4]} 112. Qb1+ {[%emt 0:0:12]} Kf2 {[%emt 0:0:6]} 113. Qxb5 {[%emt 0:0:11]} Qe3+ {[%emt 0:0:6]} 114. Kc2 {[%emt 0:0:1]} h1=Q {[%emt 0:0:4]
} 115. Qf5+ {[%emt 0:0:29]} Qhf3 {[%emt 0:0:3]} 0-1

[Event "FIDE World Rapid-ch Open 2018"]
[White "Dubrovin, Robert"]
[Black "Roiz, Michael"]
[Site "St. Petersburg"]
[Round "1.83"]
[Annotator "ChessBase"]
[Result "0-1"]
[Date "2018.12.26"]
[WhiteElo "2220"]
[BlackElo "2605"]
[PlyCount "65"]
[TimeControl "900+10"]

1. d4 {[%emt 0:0:19]} Nf6 {[%emt 0:0:0]} 2. c4 {[%emt 0:0:1]} e6 {[%emt 0:0:0]} 3. Nc3 {[%emt 0:0:1]} Bb4 {[%emt 0:0:5]} 4. a3 {[%emt 0:0:1]} Bxc3+ {[%emt 0:0:2]} 5. bxc3 {[%emt 0:0:1]} Nc6 {[%emt 0:1:50]} 6. f3 {[%emt 0:0:10]
} b6 {[%emt 0:0:10]} 7. e4 {[%emt 0:0:11]} Ba6 {[%emt 0:0:2]} 8. Bd3 {[%emt 0:0:0]} Na5 {[%emt 0:0:25]} 9. Qe2 {[%emt 0:0:2]} c5 {[%emt 0:1:15]
} 10. e5 {[%emt 0:2:45]} Ng8 {[%emt 0:0:7]} 11. dxc5 {[%emt 0:0:0]} Nb3 {[%emt 0:5:4]} 12. Rb1 {[%emt 0:0:27]} Nxc5 {[%emt 0:0:1]} 13. Rb4 {[%emt 0:4:44]} Nxd3+ {[%emt 0:2:22]} 14. Qxd3 {[%emt 0:0:1]} Qc7 {[%emt 0:0:1]
} 15. Nh3 {[%emt 0:2:49]} Rc8 {[%emt 0:0:37]} 16. Ng5 {[%emt 0:0:0]} Bxc4 {[%emt 0:0:48]} 17. Qd4 {[%emt 0:0:45]} Ne7 {[%emt 0:1:14]} 18. Ne4 {[%emt 0:1:6]} Nf5 {[%emt 0:0:12]} 19. Nd6+ {[%emt 0:0:50]} Qxd6 {[%emt 0:0:1]
} 20. Qxd6 {[%emt 0:0:1]} Nxd6 21. exd6 Rc6 {[%emt 0:0:13]} 22. Be3 {[%emt 0:0:15]} f6 {[%emt 0:0:42]} 23. Kf2 {[%emt 0:0:1]} Kf7 {[%emt 0:0:1]
} 24. a4 {[%emt 0:0:25]} Rhc8 {[%emt 0:0:20]} 25. Rd1 {[%emt 0:0:0]} Bd5 {[%emt 0:0:9]} 26. Bd4 {[%emt 0:0:34]} Rxd6 {[%emt 0:0:21]} 27. f4 {[%emt 0:0:19]} Bc4 {[%emt 0:1:1]} 28. Ra1 {[%emt 0:0:12]} Rc7 {[%emt 0:0:0]} 29. a5 {[%emt 0:0:3]} b5 {[%emt 0:0:1]} 30. a6 {[%emt 0:0:8]} Rcc6 {[%emt 0:0:4]} 31. Bxa7 {[%emt 0:0:22]} Rxa6 {[%emt 0:0:1]} 32. Rxa6 {[%emt 0:0:1]} Rxa6 {[%emt 0:0:1]} 33. Ke1 0-1

[Event "FIDE World Rapid-ch Open 2018"]
[White "Iljiushenok, Ilia"]
[Black "Abdusattorov, Nodirbek"]
[Site "St. Petersburg"]
[Round "1.84"]
[Annotator "ChessBase"]
[Result "1/2-1/2"]
[Date "2018.12.26"]
[WhiteElo "2533"]
[BlackElo "2546"]
[PlyCount "144"]
[TimeControl "900+10"]

1. e4 {[%emt 0:0:0]} c5 {[%emt 0:0:0]} 2. Nc3 {[%emt 0:0:0]} d6 {[%emt 0:0:0]} 3. d4 {[%emt 0:0:0]} cxd4 {[%emt 0:0:3]} 4. Qxd4 {[%emt 0:0:0]} Nf6 {[%emt 0:0:4]} 5. b3 {[%emt 0:0:8]} g6 {[%emt 0:0:43]} 6. Bb2 {[%emt 0:0:6]
} Bg7 {[%emt 0:0:6]} 7. 0-0-0 {[%emt 0:0:21]} 0-0 {[%emt 0:0:0]} 8. f3 {[%emt 0:0:21]} Nc6 {[%emt 0:0:43]} 9. Qd2 {[%emt 0:0:3]} Bd7 {[%emt 0:0:11]
} 10. g4 {[%emt 0:0:26]} Qa5 {[%emt 0:0:16]} 11. Kb1 {[%emt 0:0:0]} Rfc8 {[%emt 0:0:4]} 12. h4 {[%emt 0:2:20]} h5 {[%emt 0:0:31]} 13. g5 {[%emt 0:0:15]} Ne8 {[%emt 0:0:2]} 14. Nge2 {[%emt 0:2:56]} Nc7 {[%emt 0:0:35]
} 15. Nf4 {[%emt 0:0:14]} e6 {[%emt 0:1:53]} 16. a3 {[%emt 0:0:0]} Nd4 {[%emt 0:2:6]} 17. Qe3 {[%emt 0:3:14]} Ndb5 {[%emt 0:3:42]} 18. Bxb5 {[%emt 0:0:23]} Bxb5 {[%emt 0:1:34]} 19. Rh2 {[%emt 0:1:57]} Be5 {[%emt 0:0:28]
} 20. Rhd2 {[%emt 0:0:1]} Be8 {[%emt 0:0:20]} 21. Nfe2 {[%emt 0:0:27]
} Nb5 {[%emt 0:0:58]} 22. Nxb5 {[%emt 0:0:6]} Bxb5 {[%emt 0:0:0]} 23. Nd4 {[%emt 0:0:25]} Be8 {[%emt 0:0:43]} 24. f4 {[%emt 0:0:4]} Bg7 {[%emt 0:0:4]} 25. f5 {[%emt 0:0:58]} e5 {[%emt 0:0:18]} 26. Ne2 {[%emt 0:0:18]
} Bf8 {[%emt 0:0:39]} 27. Nc3 {[%emt 0:0:4]} Bc6 {[%emt 0:0:0]} 28. Nd5 {[%emt 0:0:3]} Bxd5 {[%emt 0:0:37]} 29. Rxd5 {[%emt 0:0:1]} Qc7 {[%emt 0:0:2]} 30. R1d2 {[%emt 0:0:3]} Re8 {[%emt 0:0:13]} 31. Rf2 {[%emt 0:0:18]
} Be7 {[%emt 0:0:10]} 32. Qf3 {[%emt 0:0:13]} Bf8 {[%emt 0:0:0]} 33. a4 {[%emt 0:0:37]} Rac8 {[%emt 0:0:6]} 34. Rfd2 {[%emt 0:0:30]} Be7 {[%emt 0:0:55]} 35. Ba3 {[%emt 0:0:5]} Red8 {[%emt 0:0:26]} 36. Kb2 {[%emt 0:0:9]
} Rd7 {[%emt 0:0:11]} 37. Kb1 {[%emt 0:0:10]} Rdd8 {[%emt 0:0:0]} 38. Qh3 {[%emt 0:0:11]} Bf8 {[%emt 0:0:29]} 39. fxg6 fxg6 {[%emt 0:0:0]} 40. Qe6+ {[%emt 0:0:44]} Kh7 {[%emt 0:0:22]} 41. Bxd6 {[%emt 0:0:6]} Bxd6 {[%emt 0:0:2]} 42. Rxd6 {[%emt 0:0:2]} Rxd6 {[%emt 0:0:3]} 43. Qxd6 {[%emt 0:0:1]} Qg7 {[%emt 0:0:34]} 44. Qd7 {[%emt 0:0:11]} Rc7 {[%emt 0:0:0]} 45. Qxg7+ {[%emt 0:0:1]} Kxg7 {[%emt 0:0:1]} 46. Rd5 {[%emt 0:0:10]} Kf7 {[%emt 0:0:42]} 47. Rxe5 {[%emt 0:0:8]} Rc3 {[%emt 0:0:1]} 48. Rb5 {[%emt 0:0:16]
} b6 {[%emt 0:0:9]} 49. a5 {[%emt 0:0:1]} Rh3 {[%emt 0:0:20]
} 50. axb6 {[%emt 0:0:52]} axb6 {[%emt 0:0:1]} 51. Rxb6 {[%emt 0:0:2]} Rxh4 {[%emt 0:0:2]} 52. Rf6+ {[%emt 0:0:8]} Kg7 {[%emt 0:0:2]} 53. Rf1 {[%emt 0:0:58]
} Rxe4 {[%emt 0:0:2]} 54. c4 {[%emt 0:0:10]} Re5 {[%emt 0:0:0]} 55. Rc1 {[%emt 0:0:3]} Kf7 {[%emt 0:0:6]} 56. Rg1 {[%emt 0:0:12]} Re2 {[%emt 0:0:12]} 57. Rf1+ {[%emt 0:0:5]} Ke7 {[%emt 0:0:5]} 58. Rf6 {[%emt 0:0:4]
} h4 {[%emt 0:0:1]} 59. Rf3 {[%emt 0:0:17]} Rg2 {[%emt 0:0:0]} 60. Rh3 {[%emt 0:0:8]} Rg3 {[%emt 0:0:5]} 61. Rxh4 {[%emt 0:0:2]} Rxb3+ {[%emt 0:0:1]} 62. Kc2 {[%emt 0:0:1]} Rg3 {[%emt 0:0:2]} 63. Rd4 {[%emt 0:0:29]
} Rxg5 {[%emt 0:0:3]} 64. Kc3 {[%emt 0:0:0]} Rg1 {[%emt 0:0:0]} 65. c5 {[%emt 0:0:3]} g5 {[%emt 0:0:21]} 66. Kc4 {[%emt 0:0:7]} g4 {[%emt 0:0:6]
} 67. Kb3 {[%emt 0:0:28]} g3 {[%emt 0:0:12]} 68. Kb2 {[%emt 0:0:0]} g2 {[%emt 0:0:10]} 69. Rg4 {[%emt 0:0:2]} Kd7 {[%emt 0:0:4]} 70. Rg6 {[%emt 0:0:3]} Kc7 {[%emt 0:0:1]} 71. Ka2 {[%emt 0:0:1]} Rc1 {[%emt 0:0:4]
} 72. Rxg2 {[%emt 0:0:2]} Rxc5 {[%emt 0:0:1]} 1/2-1/2